fUST/lending_fUST_20250802
["ID","MTS","AMOUNT","RATE_DAILY","PERIOD"]
[376783831,1754122648989,10000.0,0.00023657,2]
[376783832,1754122649011,10000.0,0.00023657,2]
[376783833,1754122649034,2300.13102754,0.00023657,2]
[376783834,1754122650907,200.0,0.00025857,120]
[376783835,1754122661559,180.78538453,0.00024547,2]
[376783836,1754122682153,312.16666667,0.00024557,2]
[376783838,1754122694901,2084.84548347,0.00024557,2]
[376783839,1754122695834,384.61,0.00024472,7]
[376783840,1754122736828,460.0,0.00023779,2]
[376783841,1754122758459,1537.41349654,0.00024557,2]
[376783842,1754122761813,175.72906849,0.00024556,2]
[376783845,1754122777807,7826.85743497,0.00024457,2]
[376783846,1754122777832,10000.0,0.00024457,2]
[376783847,1754122777857,10000.0,0.00024457,2]
[376783848,1754122777881,10000.0,0.00024457,2]
[376783849,1754122777907,10000.0,0.00024457,2]
[376783850,1754122777931,10000.0,0.00024457,2]
[376783851,1754122777957,10000.0,0.00024457,2]
[376783852,1754122777982,10000.0,0.00024457,2]
[376783853,1754122778007,10000.0,0.00024457,2]
[376783854,1754122778031,10000.0,0.00024457,2]
[376783855,1754122778054,10000.0,0.00024457,2]
[376783856,1754122778078,10000.0,0.00024457,2]
[376783857,1754122778114,10000.0,0.00024457,2]
[376783858,1754122778146,10000.0,0.00024457,2]
[376783859,1754122778172,10000.0,0.00024457,2]
[376783860,1754122778196,10000.0,0.00024457,2]
[376783861,1754122778220,10000.0,0.00024457,2]
[376783862,1754122778244,10000.0,0.00024457,2]
[376783863,1754122778269,10000.0,0.00024457,2]
[376783864,1754122778296,10000.0,0.00024457,2]
[376783865,1754122778324,10000.0,0.00024457,2]
[376783866,1754122778349,10000.0,0.00024457,2]
[376783867,1754122778374,10000.0,0.00024457,2]
[376783868,1754122778399,10000.0,0.00024457,2]
[376783869,1754122778423,10000.0,0.00024457,2]
[376783870,1754122778447,10000.0,0.00024457,2]
[376783871,1754122778471,9117.92922059,0.00024457,2]
[376783872,1754122785322,882.07077941,0.00024567,2]
[376783873,1754122785347,4117.92922059,0.00024567,2]
[376783874,1754122787231,-384.61,0.00024572,7]
[376783875,1754122787252,-276.4,0.000246,2]
[376783876,1754122787272,-244.0,0.000246,10]
[376783877,1754122787293,-180.78538454,0.000246,2]
[376783878,1754122787313,-154.0,0.00024655,2]
[376783879,1754122787334,-300.0,0.00024655,2]
[376783880,1754122787354,-281.464,0.00024656,7]
[376783881,1754122787374,-625.28188725,0.00024656,2]
[376783882,1754122787396,-500.0,0.00024656,2]
[376783883,1754122787420,-500.0,0.00024656,2]
[376783884,1754122787442,-500.0,0.00024656,2]
[376783885,1754122787464,-500.0,0.00024656,2]
[376783886,1754122787487,-500.0,0.00024656,2]
[376783887,1754122787509,-500.0,0.00024656,2]
[376783888,1754122787531,-500.0,0.00024656,2]
[376783889,1754122787555,-500.0,0.00024656,2]
[376783890,1754122787577,-500.0,0.00024656,2]
[376783891,1754122787600,-500.0,0.00024656,2]
[376783892,1754122787623,-500.0,0.00024656,2]
[376783893,1754122787647,-500.0,0.00024656,2]
[376783894,1754122787671,-500.0,0.00024656,2]
[376783895,1754122787693,-500.0,0.00024656,2]
[376783896,1754122787715,-500.0,0.00024656,2]
[376783897,1754122787738,-226.56463451,0.00024656,2]
[376783898,1754122787761,-500.0,0.00024656,2]
[376783899,1754122787783,-500.0,0.00024656,2]
[376783900,1754122787805,-500.0,0.00024656,2]
[376783901,1754122787830,-500.0,0.00024656,2]
[376783902,1754122787854,-500.0,0.00024656,2]
[376783903,1754122787877,-500.0,0.00024656,2]
[376783904,1754122787900,-500.0,0.00024656,2]
[376783905,1754122787922,-500.0,0.00024656,2]
[376783906,1754122787946,-500.0,0.00024656,2]
[376783907,1754122787967,-608.59524415,0.00024656,2]
[376783908,1754122787990,-240.0,0.00024656,2]
[376783909,1754122788012,-500.0,0.00024656,2]
[376783910,1754122788037,-199.06568579,0.00024656,2]
[376783911,1754122788066,-243.29531104,0.00024656,2]
[376783912,1754122788097,-500.0,0.00024656,2]
[376783913,1754122788121,-303.91201043,0.00024656,2]
[376783914,1754122788149,-155.0,0.00024656,2]
[376783915,1754122788175,-2881.62,0.00024656,2]
[376783916,1754122788201,-2881.62,0.00024656,2]
[376783917,1754122788227,-2881.62,0.00024656,2]
[376783918,1754122788252,-2881.62,0.00024656,2]
[376783919,1754122788278,-2881.62,0.00024656,2]
[376783920,1754122788307,-961.92584229,0.00024656,2]
[376783921,1754122795619,5000.0,0.00024567,2]
[376783922,1754122803526,882.07077941,0.00023917,2]
[376783923,1754122803718,142.41300155,0.00023917,2]
[376783924,1754122805275,5000.0,0.00024567,2]
[376783925,1754122809026,500.0,0.00023368,2]
[376783926,1754122813694,253.98845444,0.00024567,2]
[376783927,1754122821866,4103.59854401,0.00024567,2]
[376783928,1754122821893,896.40145599,0.00024567,2]
[376783929,1754122828323,314.198114,0.00024555,2]
[376783930,1754122828667,314.19811398,0.00024555,2]
[376783931,1754122829226,314.19811398,0.00024556,2]
[376783932,1754122830281,314.19811398,0.00024556,2]
[376783933,1754122830704,314.19811398,0.00024556,2]
[376783934,1754122831109,7532.60797409,0.00023657,2]
[376783935,1754122831133,2236.42041691,0.00023657,2]
[376783936,1754122839031,5000.0,0.00024567,2]
[376783937,1754122842979,756.56196636,0.00024444,12]
[376783938,1754122848282,-300.0,0.00024655,2]
[376783939,1754122848312,-300.0,0.00024655,2]
[376783940,1754122848341,-300.0,0.00024655,2]
[376783941,1754122848371,-300.0,0.00024655,2]
[376783942,1754122848402,-1200.0,0.00024655,2]
[376783943,1754122855281,2007.01761673,0.00024567,2]
[376783944,1754122855306,2992.98238327,0.00024567,2]
[376783945,1754122866791,-8416.46238236,0.00024656,2]
[376783946,1754122866900,-10000.0,0.00024656,2]
[376783947,1754122867157,-10000.0,0.00024656,2]
[376783948,1754122867437,-10000.0,0.00024656,2]
[376783949,1754122867687,-10000.0,0.00024656,2]
[376783950,1754122867946,-1583.53761764,0.00024656,2]
[376783951,1754122867976,-1919.69415771,0.00024656,2]
[376783952,1754122868007,-111.9164493,0.00024656,2]
[376783953,1754122868060,-2769.7035507,0.00024656,2]
[376783954,1754122868208,-2881.62,0.00024656,2]
[376783955,1754122868239,-1355.14,0.00024656,2]
[376783956,1754122868277,-1526.48,0.00024656,2]
[376783957,1754122868448,-2881.62,0.00024656,2]
[376783958,1754122868478,-1355.14,0.00024656,2]
[376783959,1754122868516,-1526.48,0.00024656,2]
[376783960,1754122868764,-2881.62,0.00024656,2]
[376783961,1754122868796,-1355.14,0.00024656,2]
[376783962,1754122868836,-1526.48,0.00024656,2]
[376783963,1754122871128,5000.0,0.00024567,2]
[376783964,1754122872181,-2881.62,0.00024656,2]
[376783965,1754122872216,-1355.14,0.00024656,2]
[376783966,1754122872760,-1526.48,0.00024656,2]
[376783967,1754122872791,-2881.62,0.00024656,2]
[376783968,1754122873054,-2881.62,0.00024656,2]
[376783969,1754122873085,-1355.14,0.00024656,2]
[376783970,1754122875559,-1526.48,0.00024656,2]
[376783971,1754122875588,-2881.62,0.00024656,2]
[376783972,1754122875655,-420.56,0.00024656,2]
[376783973,1754122878035,-2461.06,0.00024656,2]
[376783974,1754122878067,-2196.26,0.00024656,2]
[376783975,1754122878106,-685.36,0.00024656,2]
[376783976,1754122878334,-2881.62,0.00024656,2]
[376783977,1754122878364,-1355.14,0.00024656,2]
[376783978,1754122878430,-1526.48,0.00024656,2]
[376783979,1754122878599,-2881.74,0.00024656,2]
[376783980,1754122878629,-502.02813044,0.00024656,2]
[376783981,1754122878659,-199.3499585,0.00024656,2]
[376783982,1754122878687,-359.75344919,0.00024656,2]
[376783983,1754122878715,-500.0,0.00024656,2]
[376783984,1754122878745,-467.95277359,0.00024656,2]
[376783985,1754122878856,-178.35137656,0.00024656,2]
[376783986,1754122880460,-321.64862344,0.00024656,2]
[376783987,1754122880492,-500.0,0.00024656,2]
[376783988,1754122880524,-458.55669405,0.00024656,2]
[376783989,1754122880554,-500.0,0.00024656,2]
[376783990,1754122880585,-300.0,0.00024656,2]
[376783991,1754122880615,-500.0,0.00024656,2]
[376783992,1754122880647,-500.0,0.00024656,2]
[376783993,1754122880677,-500.0,0.00024656,2]
[376783994,1754122880709,-500.0,0.00024656,2]
[376783995,1754122880741,-500.0,0.00024656,2]
[376783996,1754122880776,-339.58936502,0.00024656,2]
[376783997,1754122880967,-160.41063498,0.00024656,2]
[376783998,1754122881007,-444.74225873,0.00024656,2]
[376783999,1754122881038,-500.0,0.00024656,2]
[376784000,1754122881069,-500.0,0.00024656,2]
[376784001,1754122881099,-363.21065723,0.00024656,2]
[376784002,1754122881134,-500.0,0.00024656,2]
[376784003,1754122881167,-500.0,0.00024656,2]
[376784004,1754122881199,-500.0,0.00024656,2]
[376784005,1754122881342,-500.0,0.00024656,2]
[376784006,1754122881375,-500.0,0.00024656,2]
[376784007,1754122881405,-500.0,0.00024656,2]
[376784008,1754122881437,-8.42408594,0.00024656,2]
[376784009,1754122881608,-367.2459962,0.00024656,2]
[376784010,1754122881639,-500.0,0.00024656,2]
[376784011,1754122881670,-500.0,0.00024656,2]
[376784012,1754122881701,-500.0,0.00024656,2]
[376784013,1754122881736,-500.0,0.00024656,2]
[376784014,1754122881771,-500.0,0.00024656,2]
[376784015,1754122881804,-500.0,0.00024656,2]
[376784016,1754122881836,-500.0,0.00024656,2]
[376784017,1754122881868,-500.0,0.00024656,2]
[376784018,1754122881899,-500.0,0.00024656,2]
[376784019,1754122882014,-500.0,0.00024656,2]
[376784020,1754122882051,-361.85564682,0.00024656,2]
[376784021,1754122882085,-500.0,0.00024656,2]
[376784022,1754122882125,-500.0,0.00024656,2]
[376784023,1754122882163,-500.0,0.00024656,2]
[376784024,1754122882199,-500.0,0.00024656,2]
[376784025,1754122882233,-500.0,0.00024656,2]
[376784026,1754122882266,-500.0,0.00024656,2]
[376784027,1754122882298,-500.0,0.00024656,2]
[376784028,1754122882329,-500.0,0.00024656,2]
[376784029,1754122882499,-557.56565128,0.00024656,2]
[376784030,1754122882533,-500.0,0.00024656,2]
[376784031,1754122882565,-500.0,0.00024656,2]
[376784032,1754122888305,5000.0,0.00024656,2]
[376784033,1754122891157,200.0,0.00025931,120]
[376784034,1754122897915,302.429,0.00022318,2]
[376784035,1754122898703,1582.43969744,0.00024557,2]
[376784036,1754122898727,187.6913852,0.00024557,2]
[376784037,1754122900702,1770.13108264,0.00024618,2]
[376784038,1754122904297,5000.0,0.00024656,2]
[376784039,1754122918381,150.0,0.00022557,2]
[376784040,1754122920888,2892.17753216,0.00024656,2]
[376784041,1754122920912,2107.82246784,0.00024656,2]
[376784042,1754122927488,7892.17753216,0.00024457,2]
[376784043,1754122927514,10000.0,0.00024457,2]
[376784044,1754122927538,10000.0,0.00024457,2]
[376784045,1754122927563,10000.0,0.00024457,2]
[376784046,1754122927591,10000.0,0.00024457,2]
[376784047,1754122927617,10000.0,0.00024457,2]
[376784048,1754122927643,10000.0,0.00024457,2]
[376784049,1754122927669,10000.0,0.00024457,2]
[376784050,1754122927694,10000.0,0.00024457,2]
[376784051,1754122927725,10000.0,0.00024457,2]
[376784052,1754122927752,10000.0,0.00024457,2]
[376784053,1754122927780,10000.0,0.00024457,2]
[376784054,1754122927807,10000.0,0.00024457,2]
[376784055,1754122927833,10000.0,0.00024457,2]
[376784056,1754122927857,10000.0,0.00024457,2]
[376784057,1754122927883,10000.0,0.00024457,2]
[376784058,1754122927908,10000.0,0.00024457,2]
[376784059,1754122927932,10000.0,0.00024457,2]
[376784060,1754122927966,10000.0,0.00024457,2]
[376784061,1754122927998,10000.0,0.00024457,2]
[376784062,1754122928024,10000.0,0.00024457,2]
[376784063,1754122928049,10000.0,0.00024457,2]
[376784064,1754122928252,1884.47277421,0.00024457,2]
[376784065,1754122938138,5000.0,0.00024656,2]
[376784066,1754122940264,3115.52722579,0.00023657,2]
[376784067,1754122940288,10000.0,0.00023657,2]
[376784068,1754122940314,10000.0,0.00023657,2]
[376784069,1754122940336,1784.47277421,0.00023657,2]
[376784070,1754122953295,5000.0,0.00024656,2]
[376784071,1754122954869,666.0,0.00023657,2]
[376784072,1754122955661,505.14,0.00024647,3]
[376784073,1754122968001,252.57,0.00024647,3]
[376784074,1754122971225,1791.81722579,0.00024656,2]
[376784075,1754122971249,3208.18277421,0.00024656,2]
[376784076,1754122976683,316.56129544,0.00024557,2]
[376784077,1754122978859,757.73,0.00024647,3]
[376784078,1754122985175,5717.52593035,0.00024557,2]
[376784079,1754122985199,3703.90205773,0.00024557,2]
[376784080,1754122987353,5000.0,0.00024656,2]
[376784081,1754123002545,151.31843755,0.00024115,2]
[376784082,1754123003829,1144.77950472,0.00024656,2]
[376784083,1754123003851,3855.22049528,0.00024656,2]
[376784084,1754123019245,5000.0,0.00024656,2]
[376784085,1754123029663,1144.77950472,0.00023657,2]
[376784086,1754123029685,8855.22049528,0.00023657,2]
[376784087,1754123035837,1144.77950472,0.00024656,2]
[376784088,1754123035862,3855.22049528,0.00024656,2]
[376784089,1754123045893,183.818179,0.00023657,2]
[376784090,1754123053954,5000.0,0.00024656,2]
[376784091,1754123069330,960.96132572,0.00024656,2]
[376784092,1754123087605,2007.01761673,0.00024556,2]
[376784093,1754123087628,10000.0,0.00024556,2]
[376784094,1754123087651,10000.0,0.00024556,2]
[376784095,1754123087673,10000.0,0.00024556,2]
[376784096,1754123087695,10000.0,0.00024556,2]
[376784097,1754123087716,10000.0,0.00024556,2]
[376784098,1754123087744,10000.0,0.00024556,2]
[376784099,1754123087775,10000.0,0.00024556,2]
[376784100,1754123087798,10000.0,0.00024556,2]
[376784101,1754123087818,10000.0,0.00024556,2]
[376784102,1754123087840,10000.0,0.00024556,2]
[376784103,1754123087862,10000.0,0.00024556,2]
[376784104,1754123087884,10000.0,0.00024556,2]
[376784105,1754123087906,10000.0,0.00024556,2]
[376784106,1754123087928,10000.0,0.00024556,2]
[376784107,1754123087950,10000.0,0.00024556,2]
[376784108,1754123087972,10000.0,0.00024556,2]
[376784109,1754123087994,10000.0,0.00024556,2]
[376784110,1754123088016,4737.46143779,0.00024556,2]
[376784111,1754123103163,6898.52597586,0.00018772,2]
[376784112,1754123103191,1561.47402414,0.00018772,2]
[376784116,1754123117126,166.2588413,0.00023657,2]
[376784139,1754123167313,-177.779812,0.00023846,2]
[376784140,1754123167340,-774.22624086,0.00023917,2]
[376784141,1754123167369,-325.0,0.00024484,3]
[376784180,1754123251039,-5190.38130102,0.00024556,2]
[376784181,1754123251262,-10000.0,0.00024556,2]
[376784182,1754123251684,-10000.0,0.00024556,2]
[376784183,1754123251810,-10000.0,0.00024556,2]
[376784184,1754123252078,-10000.0,0.00024556,2]
[376784185,1754123252336,-10000.0,0.00024556,2]
[376784186,1754123252628,-10000.0,0.00024556,2]
[376784188,1754123252899,-10000.0,0.00024556,2]
[376784189,1754123253166,-10000.0,0.00024556,2]
[376784190,1754123253438,-3693.33005921,0.00024556,2]
[376784191,1754123253464,-2613.33988158,0.00024556,2]
[376784192,1754123253719,-10000.0,0.00024556,2]
[376784193,1754123253981,-2646.87439643,0.00024556,2]
[376784194,1754123254014,-557.26345729,0.00024556,2]
[376784197,1754123261418,3591.72429256,0.00019237,2]
[376784198,1754123261442,5352.14651,0.00019237,2]
[376784200,1754123263142,4647.85349,0.00024556,2]
[376784201,1754123263165,352.14651,0.00024556,2]
[376784204,1754123268809,208.0519803,0.00023657,2]
[376784205,1754123271903,242.06848977,0.00024473,2]
[376784206,1754123272231,9197.73301993,0.00018,2]
[376784207,1754123272255,10000.0,0.00018,2]
[376784208,1754123272278,10000.0,0.00018,2]
[376784209,1754123272300,10000.0,0.00018,2]
[376784210,1754123272323,8655.89967652,0.00018,2]
[376784213,1754123276342,1344.10032348,0.00018,2]
[376784214,1754123276364,8006.34970442,0.00018,2]
[376784218,1754123279546,1993.65029558,0.00024556,2]
[376784219,1754123279570,3006.34970442,0.00024556,2]
[376784221,1754123287846,5000.0,0.00024556,2]
[376784223,1754123293536,159.394729,0.00013699,2]
[376784224,1754123293738,159.394729,0.00023973,2]
[376784225,1754123295942,415.52553419,0.00010618,2]
[376784226,1754123296734,1259.33530339,0.00024556,2]
[376784227,1754123296758,3740.66469661,0.00024556,2]
[376784228,1754123297838,6259.33530339,0.000125,2]
[376784229,1754123297861,4939.19660134,0.000125,2]
[376784230,1754123304719,5000.0,0.00024556,2]
[376784231,1754123306537,60.80339866,0.000176,2]
[376784232,1754123306560,1772.80751126,0.000176,2]
[376784235,1754123308943,278.10080503,0.00014114,2]
[376784236,1754123310963,282.95438901,0.0001,2]
[376784238,1754123313234,5000.0,0.00024556,2]
[376784240,1754123316349,2666.1372947,0.00017,2]
[376784241,1754123316369,10000.0,0.00017,2]
[376784242,1754123316390,10000.0,0.00017,2]
[376784243,1754123316410,10000.0,0.00017,2]
[376784244,1754123316430,10000.0,0.00017,2]
[376784245,1754123316451,10000.0,0.00017,2]
[376784246,1754123316471,10000.0,0.00017,2]
[376784247,1754123316492,10000.0,0.00017,2]
[376784248,1754123316512,10000.0,0.00017,2]
[376784249,1754123316534,9789.28629855,0.00017,2]
[376784251,1754123319135,210.71370145,0.00018,2]
[376784252,1754123319159,4316.26430134,0.00018,2]
[376784253,1754123319843,4359.8648303,0.0002378,2]
[376784255,1754123320553,581.2562976,0.000149,2]
[376784256,1754123320825,742.61457076,0.0001,2]
[376784257,1754123320849,257.38542924,0.0001,2]
[376784258,1754123321133,1958.32844434,0.00024556,2]
[376784259,1754123321575,1698.48764342,0.00018,2]
[376784261,1754123324235,512.02965708,0.000245,3]
[376784262,1754123324978,210.94628264,0.00016,2]
[376784263,1754123325084,658.38592614,0.0001843,2]
[376784265,1754123326506,4704.43661714,0.0001,2]
[376784266,1754123326529,10000.0,0.0001,2]
[376784267,1754123326553,2670.23744393,0.0001,2]
[376784268,1754123327427,1023.74008946,0.00024,7]
[376784269,1754123328375,6306.02246661,0.00022,4]
[376784270,1754123328397,5855.07232319,0.00022,4]
[376784272,1754123329803,4144.92767681,0.00024556,2]
[376784273,1754123329828,855.07232319,0.00024556,2]
[376784275,1754123332244,1031.020221,0.00023657,2]
[376784277,1754123334730,161.4319093,0.00024457,2]
[376784278,1754123339666,161.4319093,0.00024507,2]
[376784279,1754123340773,-4689.60675208,0.00024557,2]
[376784280,1754123341080,-620.78649584,0.00024557,2]
[376784281,1754123341108,-2477.47501626,0.00024557,2]
[376784282,1754123341373,-3803.4769758,0.00024557,2]
[376784283,1754123341402,-500.0,0.00024573,2]
[376784284,1754123341430,-500.0,0.00024573,2]
[376784285,1754123346092,-161.4319093,0.00024557,2]
[376784286,1754123348022,5000.0,0.00024556,2]
[376784287,1754123350858,-3693.76504609,0.0002465,2]
[376784288,1754123351087,-10000.0,0.0002465,2]
[376784289,1754123351418,-10000.0,0.0002465,2]
[376784290,1754123351892,-10000.0,0.0002465,2]
[376784291,1754123352148,-10000.0,0.0002465,2]
[376784292,1754123352414,-10000.0,0.0002465,2]
[376784293,1754123352656,-10000.0,0.0002465,2]
[376784294,1754123352895,-10000.0,0.0002465,2]
[376784295,1754123353233,-10000.0,0.0002465,2]
[376784296,1754123353390,-10000.0,0.0002465,2]
[376784297,1754123353626,-10000.0,0.0002465,2]
[376784298,1754123353912,-10000.0,0.0002465,2]
[376784299,1754123354184,-10000.0,0.0002465,2]
[376784300,1754123354562,-10000.0,0.0002465,2]
[376784301,1754123355516,-10000.0,0.0002465,2]
[376784302,1754123355827,-10000.0,0.0002465,2]
[376784303,1754123356087,-3170.64978871,0.0002465,2]
[376784304,1754123356110,-3658.70042258,0.0002465,2]
[376784305,1754123356334,-503.07957315,0.0002465,2]
[376784306,1754123356363,-696.72975054,0.00024656,2]
[376784307,1754123356408,-7600.38135262,0.00024657,2]
[376784308,1754123356668,-4054.67363949,0.00024657,2]
[376784309,1754123356692,-1890.65272102,0.00024657,2]
[376784310,1754123356932,-460.0,0.00024657,10]
[376784311,1754123356961,-151.0,0.00024657,7]
[376784312,1754123356990,-151.0,0.00024657,7]
[376784313,1754123357018,-151.0,0.00024657,7]
[376784314,1754123357045,-151.0,0.00024657,7]
[376784315,1754123357074,-151.0,0.00024657,7]
[376784316,1754123357101,-151.0,0.00024657,7]
[376784317,1754123357130,-151.0,0.00024657,7]
[376784318,1754123357158,-151.0,0.00024657,7]
[376784319,1754123357186,-151.0,0.00024657,7]
[376784320,1754123357214,-151.0,0.00024657,7]
[376784321,1754123357246,-151.0,0.00024657,7]
[376784322,1754123357274,-151.0,0.00024657,7]
[376784323,1754123357304,-151.0,0.00024657,7]
[376784324,1754123357334,-151.0,0.00024657,7]
[376784325,1754123357475,-153.93606,0.00024657,7]
[376784326,1754123357503,-151.0,0.00024657,7]
[376784327,1754123357532,-151.0,0.00024657,7]
[376784328,1754123357560,-460.0,0.00024657,10]
[376784329,1754123357588,-460.0,0.00024657,10]
[376784330,1754123357617,-151.0,0.00024657,7]
[376784331,1754123357646,-151.0,0.00024657,7]
[376784332,1754123357674,-151.0,0.00024657,7]
[376784333,1754123357702,-151.0,0.00024657,7]
[376784334,1754123357730,-151.0,0.00024657,7]
[376784335,1754123357758,-221.931224,0.00024657,7]
[376784336,1754123357975,-462.92546847,0.00024657,10]
[376784337,1754123358004,-500.0,0.00024657,10]
[376784338,1754123358032,-282.24,0.00024657,10]
[376784339,1754123358060,-461.42814951,0.00024657,10]
[376784340,1754123358089,-462.9154054,0.00024657,10]
[376784341,1754123358118,-463.40792167,0.00024657,10]
[376784342,1754123358146,-462.26690476,0.00024657,10]
[376784343,1754123358174,-462.80880441,0.00024657,10]
[376784344,1754123358202,-464.79482017,0.00024657,10]
[376784345,1754123358230,-460.0,0.00024657,10]
[376784346,1754123358261,-460.0,0.00024657,10]
[376784347,1754123358384,-497.29804953,0.00024657,10]
[376784348,1754123358412,-599.43040557,0.00024657,10]
[376784349,1754123358440,-461.57823302,0.00024657,10]
[376784350,1754123358468,-460.0,0.00024657,10]
[376784351,1754123358496,-461.51566471,0.00024657,10]
[376784352,1754123358525,-460.0,0.00024657,10]
[376784353,1754123358554,-464.45714416,0.00024657,10]
[376784354,1754123358582,-426.86633917,0.00024657,10]
[376784355,1754123358611,-464.85680174,0.00024657,10]
[376784356,1754123358640,-462.79442628,0.00024657,10]
[376784357,1754123358667,-22.40587164,0.00024657,10]
[376784358,1754123358840,-437.59412836,0.00024657,10]
[376784359,1754123358870,-460.0,0.00024657,10]
[376784360,1754123358899,-353.88476114,0.00024657,10]
[376784361,1754123358928,-460.94536757,0.00024657,10]
[376784362,1754123358957,-460.0,0.00024657,10]
[376784363,1754123358985,-460.0,0.00024657,10]
[376784364,1754123359014,-460.0,0.00024657,10]
[376784365,1754123359043,-460.0,0.00024657,10]
[376784366,1754123359071,-460.0,0.00024657,10]
[376784367,1754123359098,-460.0,0.00024657,10]
[376784368,1754123359127,-460.0,0.00024657,10]
[376784369,1754123359336,-460.0,0.00024657,10]
[376784370,1754123359365,-460.0,0.00024657,10]
[376784371,1754123359394,-460.0,0.00024657,10]
[376784372,1754123359423,-460.0,0.00024657,10]
[376784373,1754123359451,-460.0,0.00024657,10]
[376784374,1754123359478,-460.0,0.00024657,10]
[376784375,1754123359507,-460.0,0.00024657,10]
[376784376,1754123359536,-460.0,0.00024657,10]
[376784377,1754123359564,-317.57,0.00024657,10]
[376784378,1754123359593,-460.0,0.00024657,10]
[376784379,1754123359620,-461.49518306,0.00024657,10]
[376784380,1754123359929,-462.48245407,0.00024657,10]
[376784381,1754123359958,-461.39532501,0.00024657,10]
[376784382,1754123359985,-460.0,0.00024657,10]
[376784383,1754123360013,-460.0,0.00024657,10]
[376784384,1754123360041,-461.3091942,0.00024657,10]
[376784385,1754123360070,-464.75239961,0.00024657,10]
[376784386,1754123360099,-339.95411,0.00024657,7]
[376784387,1754123360128,-339.95411,0.00024657,7]
[376784388,1754123360156,-339.95411,0.00024657,7]
[376784389,1754123360185,-339.95411,0.00024657,7]
[376784390,1754123360213,-339.95411,0.00024657,7]
[376784391,1754123360245,-339.95411,0.00024657,7]
[376784392,1754123360274,-40.71782422,0.00024657,7]
[376784393,1754123360588,-299.23628578,0.00024657,7]
[376784394,1754123360617,-339.954118,0.00024657,7]
[376784395,1754123360647,-460.0,0.00024657,10]
[376784396,1754123360675,-463.00998728,0.00024657,10]
[376784397,1754123360704,-460.0,0.00024657,10]
[376784398,1754123360733,-460.0,0.00024657,10]
[376784399,1754123360765,-460.0,0.00024657,10]
[376784400,1754123360792,-460.0,0.00024657,10]
[376784401,1754123360821,-461.75218552,0.00024657,10]
[376784402,1754123360849,-462.47364132,0.00024657,10]
[376784403,1754123360877,-500.0,0.00024657,10]
[376784404,1754123361040,-500.0,0.00024657,10]
[376784405,1754123361069,-500.0,0.00024657,10]
[376784406,1754123361099,-460.0,0.00024657,10]
[376784407,1754123361132,-500.0,0.00024657,10]
[376784408,1754123361161,-500.0,0.00024657,10]
[376784409,1754123361190,-552.05,0.00024657,10]
[376784410,1754123361220,-460.0,0.00024657,10]
[376784411,1754123361250,-164.09919153,0.00024657,10]
[376784412,1754123361278,-460.0,0.00024657,10]
[376784413,1754123361309,-460.0,0.00024657,10]
[376784414,1754123361338,-364.27348013,0.00024657,10]
[376784415,1754123361534,-460.0,0.00024657,10]
[376784416,1754123361562,-460.0,0.00024657,10]
[376784417,1754123361590,-460.0,0.00024657,10]
[376784418,1754123361619,-460.0,0.00024657,10]
[376784419,1754123361649,-463.06559674,0.00024657,10]
[376784420,1754123361679,-460.0,0.00024657,10]